fUSD/lending_fUSD_20240923
["ID","MTS","AMOUNT","RATE_DAILY","PERIOD"]
[338905400,1727051443516,-1067.81353758,0.00013,2]
[338905401,1727051443527,-455.24917089,0.00013,2]
[338905402,1727051443539,-395.95700307,0.00013,2]
[338905403,1727051443550,-574.40904998,0.00013,2]
[338905404,1727051443562,-85419.82856533,0.00013,2]
[338905405,1727051443575,-12602.56263663,0.00013,2]
[338905406,1727051443586,-444.24779552,0.00013,2]
[338905407,1727051443598,-2285.82171714,0.00013,2]
[338905408,1727051443609,-754.9399989,0.00013,2]
[338905409,1727051443620,-1668.02297108,0.00013,2]
[338905410,1727051443631,-993.12736041,0.00013,2]
[338905411,1727051443642,-1082.91734936,0.00013,2]
[338905417,1727051446023,-891.03304003,0.00013,2]
[338905418,1727051446083,-1189.02918722,0.00013,2]
[338905419,1727051446097,-581.02513369,0.00013,2]
[338905420,1727051446109,-1326.68,0.00013,2]
[338905421,1727051446121,-1529.47956354,0.00013,2]
[338905422,1727051446133,-1269.51983804,0.00013,2]
[338905423,1727051446145,-265.92184059,0.00013,2]
[338905424,1727051446157,-360.08234564,0.00013,2]
[338905425,1727051446167,-443.08887524,0.00013,2]
[338905426,1727051446198,-4417.52516995,0.00013,2]
[338905427,1727051446209,-10401.00682633,0.00013,2]
[338905428,1727051446220,-1417.56443875,0.00013,2]
[338905429,1727051446231,-1851.40627976,0.00013,2]
[338905430,1727051446255,-856.13999974,0.00013,2]
[338905431,1727051446266,-907.5,0.00013,2]
[338905432,1727051446277,-3614.48,0.00013,2]
[338905433,1727051446288,-555.0,0.00013,2]
[338905434,1727051446299,-38447.83808893,0.00013,2]
[338905435,1727051446310,-2026.77504163,0.00013,2]
[338905436,1727051446320,-832.13,0.00013,2]
[338905437,1727051446340,-508.07079341,0.00013,2]
[338905438,1727051446351,-2534.226,0.00013,2]
[338905439,1727051446361,-17614.77864084,0.00013,2]
[338905440,1727051446372,-914.48554078,0.00013,2]
[338905442,1727051446387,-2735.70533876,0.00013,2]
[338905443,1727051446398,-351297.2838038,0.00013,2]
[338905444,1727051446410,-45793.13413091,0.00013,2]
[338905445,1727051446422,-8200.69049466,0.00013,2]
[338905446,1727051446433,-392.18531531,0.00013,2]
[338905447,1727051446444,-330.27325381,0.00013,2]
[338905448,1727051446455,-1325.98466,0.00013,2]
[338905449,1727051446466,-1546.58900404,0.00013,2]
[338905450,1727051446482,-629.89200498,0.00013,2]
[338905451,1727051446493,-1224.9376738,0.00013,2]
[338905452,1727051446504,-2800.21661438,0.00013,2]
[338905454,1727051641127,-299.12023641,0.00012031,2]
[338905455,1727051641840,-298.33,0.00012031,2]
[338905456,1727051642302,-201.54976359,0.00012031,2]
[338905457,1727051662509,-295.31518049,0.00012031,2]
[338905458,1727051663369,-294.88159728,0.00012031,2]
[338905459,1727051663879,-208.80322223,0.00012031,2]
[338905460,1727051668601,500.0,0.00021999,120]
[338905461,1727051668918,500.0,0.00021999,120]
[338905462,1727051669249,500.0,0.00021999,120]
[338905463,1727051669743,500.0,0.00021999,120]
[338905464,1727051669985,500.0,0.00021999,120]
[338905465,1727051670239,500.0,0.00021999,120]
[338905466,1727051670536,500.0,0.00021999,120]
[338905467,1727051670842,500.0,0.00021999,120]
[338905468,1727051671205,500.0,0.00021999,120]
[338905469,1727051671502,500.0,0.00021999,120]
[338905470,1727051671766,500.0,0.00021999,120]
[338905471,1727051672085,500.0,0.00021999,120]
[338905472,1727051672337,500.0,0.00021999,120]
[338905473,1727051672606,561.9894268,0.00021999,120]
[338905474,1727051683732,-248.03677777,0.00012031,2]
[338905475,1727051685434,-250.0,0.00012031,2]
[338905476,1727051686114,-220.69,0.00012031,2]
[338905477,1727051709007,-80.27322223,0.00012031,2]
[338905478,1727051709028,-69.72677777,0.00012031,2]
[338905479,1727051711784,-150.0,0.00012031,2]
[338905480,1727051751172,328.0,0.00011959,2]
[338905481,1727051756276,542.84,0.00011959,2]
[338905482,1727051864407,245.79,0.00011959,2]
[338905483,1727051879701,5875.045459,0.0001197,2]
[338905484,1727051917124,170.97,0.00011959,2]
[338905485,1727051917766,160.11,0.00010959,2]
[338905486,1727051960826,2000.0,0.00011875,2]
[338905487,1727051980484,300.83,9.952e-05,2]
[338905488,1727051984771,500.0,0.00010663,2]
[338905489,1727052002085,150.0,0.00011875,2]
[338905490,1727052002297,150.0,0.00011875,2]
[338905491,1727052002514,150.0,0.00011875,2]
[338905492,1727052002695,150.0,0.00011875,2]
[338905493,1727052002885,150.0,0.00011875,2]
[338905494,1727052003074,150.0,0.00011875,2]
[338905495,1727052006471,172.34,0.00012021,2]
[338905496,1727052006700,172.34,0.00012026,2]
[338905497,1727052007023,172.34,0.00012026,2]
[338905498,1727052007275,172.34,0.00012026,2]
[338905499,1727052007541,172.34,0.00012026,2]
[338905500,1727052068092,174.1605,0.00011936,2]
[338905501,1727052081047,250.0,0.00011854,2]
[338905502,1727052141109,1000.0,0.00011854,2]
[338905503,1727052183473,9635.59,0.00011949,2]
[338905504,1727052206974,500.0,0.00010663,2]
[338905505,1727052233123,613.69,0.00011863,2]
[338905506,1727052237950,23900.0,0.00011872,2]
[338905507,1727052302510,150.0,0.00011688,2]
[338905508,1727052319319,737.6,0.00011884,2]
[338905509,1727052410568,194.11,0.00011935,2]
[338905514,1727052495175,166.83,0.00010959,2]
[338905515,1727052507407,285.78,9.953e-05,2]
[338905516,1727052554115,450.0,0.00011861,2]
[338905517,1727052605083,172.37,0.00012021,2]
[338905523,1727052635373,-143.43652066,0.00012031,2]
[338905524,1727052635383,-201.77269143,0.00012117,2]
[338905525,1727052635392,-7137.8606278,0.00012154,2]
[338905526,1727052635402,-1059.73,0.000122,2]
[338905527,1727052635412,-285.78,0.00012217,2]
[338905528,1727052635421,-300.0,0.00012254,2]
[338905529,1727052635430,-3171.4261097,0.00012255,2]
[338905530,1727052635441,-3966.43451808,0.00012255,2]
[338905531,1727052635451,-150.0,0.00012354,2]
[338905532,1727052635462,-1549.0,0.00012355,2]
[338905533,1727052635471,-13489.0,0.00012355,2]
[338905534,1727052635480,-188.121,0.00012355,2]
[338905535,1727052635490,-168.35,0.00012445,2]
[338905536,1727052635501,-799.0,0.00012602,2]
[338905537,1727052635512,-715.0,0.000127,2]
[338905538,1727052635522,-428.14,0.000127,2]
[338905539,1727052635533,-150.0,0.000127,2]
[338905540,1727052635542,-300.0,0.000127,2]
[338905541,1727052635551,-422.82,0.000127,2]
[338905542,1727052635560,-150.0,0.000127,2]
[338905543,1727052635569,-753.33,0.000127,2]
[338905544,1727052635578,-169.82,0.000127,2]
[338905545,1727052635587,-304.08,0.000127,2]
[338905546,1727052635597,-173.13,0.000127,2]
[338905547,1727052635608,-428.22,0.000127,2]
[338905548,1727052635618,-150.0,0.000127,2]
[338905549,1727052635627,-753.48,0.000127,2]
[338905550,1727052635636,-150.0,0.000127,2]
[338905551,1727052635645,-150.0,0.000127,2]
[338905552,1727052635654,-150.0,0.000127,2]
[338905553,1727052635663,-422.82,0.000127,2]
[338905554,1727052635672,-428.22,0.000127,2]
[338905555,1727052635681,-150.0,0.000127,2]
[338905556,1727052635692,-753.48,0.000127,2]
[338905557,1727052635701,-422.82,0.000127,2]
[338905558,1727052635712,-150.0,0.000127,2]
[338905559,1727052635721,-428.22,0.000127,2]
[338905560,1727052635731,-150.0,0.000127,2]
[338905562,1727052635740,-422.32,0.000127,2]
[338905564,1727052635749,-150.0,0.000127,2]
[338905566,1727052635758,-753.48,0.000127,2]
[338905568,1727052635767,-150.0,0.000127,2]
[338905570,1727052635777,-753.48,0.000127,2]
[338905572,1727052635786,-282.78,0.000127,2]
[338905574,1727052635796,-150.0,0.000127,2]
[338905576,1727052635805,-428.22,0.000127,2]
[338905578,1727052635814,-150.0,0.000127,2]
[338905580,1727052635823,-150.0,0.000127,2]
[338905582,1727052635832,-428.22,0.000127,2]
[338905584,1727052635842,-753.48,0.000127,2]
[338905586,1727052635852,-428.22,0.000127,2]
[338905588,1727052635861,-359.99,0.000127,2]
[338905590,1727052635870,-753.48,0.000127,2]
[338905592,1727052635879,-150.0,0.000127,2]
[338905594,1727052635887,-589.5,0.000127,2]
[338905596,1727052635897,-428.04,0.000127,2]
[338905598,1727052635906,-150.0,0.000127,2]
[338905599,1727052635915,-150.0,0.000127,2]
[338905601,1727052635924,-499.99,0.000127,2]
[338905604,1727052635934,-1000.0,0.000127,2]
[338905606,1727052635943,-150.0,0.000127,2]
[338905608,1727052635953,-150.0,0.000127,2]
[338905610,1727052635962,-598.461,0.00012777,2]
[338905612,1727052635971,-165.622,0.00012777,2]
[338905614,1727052635982,-585.29,0.00012777,2]
[338905616,1727052635991,-297.02494408,0.000128,2]
[338905618,1727052636000,-4890.20276816,0.000128,2]
[338905620,1727052636009,-4890.20276808,0.00012811,2]
[338905621,1727052636019,-500.0,0.00012812,2]
[338905623,1727052636028,-500.0,0.00012821,2]
[338905625,1727052636037,-4890.20276808,0.00012822,2]
[338905627,1727052636048,-500.0,0.0001283,2]
[338905629,1727052636060,-4882.3299105,0.00012833,2]
[338905635,1727052636098,-7.87285758,0.00012833,2]
[338905637,1727052636107,-155.0,0.0001284,2]
[338905638,1727052636116,-4890.20276808,0.00012844,2]
[338905641,1727052636127,-4890.20276808,0.00012856,2]
[338905642,1727052636136,-4890.20276808,0.00012867,2]
[338905644,1727052636145,-2898.24649925,0.0001287,2]
[338905646,1727052636154,-4890.20276808,0.00012878,2]
[338905648,1727052636163,-4890.20276808,0.00012889,2]
[338905649,1727052636173,-500.0,0.00012896,2]
[338905650,1727052636182,-200.0,0.00012896,2]
[338905652,1727052636192,-47905.6834,0.000129,2]
[338905653,1727052636202,-7362.5275,0.000129,2]
[338905654,1727052636212,-1053.05656885,0.000129,2]
[338905655,1727052636223,-1093.59683115,0.000129,2]
[338905656,1727052636232,-15167.1173789,0.000129,2]
[338905657,1727052636245,-7908.74841626,0.000129,2]
[338905658,1727052636255,-298.33,0.000129,2]
[338905659,1727052636265,-2817.12158374,0.000129,2]
[338905660,1727052636278,-906.34494258,0.000129,2]
[338905661,1727052636292,-600.0,0.000129,2]
[338905662,1727052636303,-1154.86373683,0.000129,2]
[338905663,1727052636316,-482.99531256,0.000129,2]
[338905664,1727052636328,-428.6030531,0.000129,2]
[338905665,1727052636340,-727.73898001,0.000129,2]
[338905666,1727052636355,-512.89728332,0.000129,2]
[338905667,1727052636366,-154.87143135,0.000129,2]
[338905668,1727052636377,-3591.84198589,0.000129,2]
[338905669,1727052636390,-1687.82760072,0.000129,2]
[338905670,1727052636401,-17796.19620855,0.000129,2]
[338905671,1727052636411,-160.36941333,0.000129,2]
[338905672,1727052636420,-5856.65152106,0.000129,2]
[338905673,1727052636431,-1773.91337108,0.000129,2]
[338905674,1727052636441,-3227.40902621,0.000129,2]
[338905675,1727052636451,-299.120237,0.000129,2]
[338905676,1727052636462,-154.31128906,0.000129,2]
[338905677,1727052636471,-2677.3116,0.000129,2]
[338905678,1727052636480,-4890.20276808,0.000129,2]
[338905679,1727052636489,-7630.56489214,0.000129,2]
[338905680,1727052636498,-154.82097687,0.000129,2]
[338905681,1727052636507,-154.82097687,0.000129,2]
[338905682,1727052636516,-154.82097687,0.000129,2]
[338905683,1727052636527,-154.82097687,0.000129,2]
[338905684,1727052636536,-154.82097687,0.000129,2]
[338905685,1727052636547,-154.82097687,0.000129,2]
[338905686,1727052636557,-154.82097687,0.000129,2]
[338905687,1727052636566,-154.82097687,0.000129,2]
[338905688,1727052636576,-155.32,0.000129,2]
[338905689,1727052636586,-518.00441707,0.000129,2]
[338905690,1727052636596,-518.00441707,0.000129,2]
[338905691,1727052636607,-518.00441707,0.000129,2]
[338905692,1727052636619,-518.00441707,0.000129,2]
[338905693,1727052636629,-518.00441707,0.000129,2]
[338905694,1727052636638,-518.00441707,0.000129,2]
[338905695,1727052636647,-518.00441707,0.000129,2]
[338905696,1727052636657,-518.00441707,0.000129,2]
[338905697,1727052636667,-518.00441707,0.000129,2]
[338905698,1727052636676,-518.00441707,0.000129,2]
[338905699,1727052636685,-518.00441707,0.000129,2]
[338905700,1727052636698,-181.69414569,0.000129,2]
[338905701,1727052636709,-336.31027138,0.000129,2]
[338905702,1727052636720,-225.44903686,0.000129,2]
[338905703,1727052636731,-292.55538021,0.000129,2]
[338905704,1727052636741,-518.00441707,0.000129,2]
[338905705,1727052636750,-518.00441707,0.000129,2]
[338905706,1727052636760,-518.00441707,0.000129,2]
[338905707,1727052636769,-518.00441707,0.000129,2]
[338905708,1727052636779,-518.00441707,0.000129,2]
[338905709,1727052636788,-518.00441707,0.000129,2]
[338905710,1727052636797,-518.5,0.000129,2]
[338905711,1727052636807,-552.94783197,0.000129,2]
[338905712,1727052636816,-552.94783197,0.000129,2]
[338905713,1727052636825,-552.94783197,0.000129,2]
[338905714,1727052636833,-552.94783197,0.000129,2]
[338905715,1727052636842,-552.94783197,0.000129,2]
[338905716,1727052636853,-552.94783197,0.000129,2]
[338905717,1727052636862,-552.94783197,0.000129,2]
[338905718,1727052636872,-552.94783197,0.000129,2]
[338905719,1727052636882,-552.94783197,0.000129,2]
[338905720,1727052636891,-552.94783197,0.000129,2]
[338905721,1727052636900,-552.94783197,0.000129,2]
[338905722,1727052636909,-552.94783197,0.000129,2]
[338905723,1727052636919,-552.94783197,0.000129,2]
[338905724,1727052636928,-552.94783197,0.000129,2]
[338905725,1727052636938,-552.94783197,0.000129,2]
[338905726,1727052636947,-552.94783197,0.000129,2]
[338905727,1727052636957,-552.94783197,0.000129,2]
[338905728,1727052636969,-552.94783197,0.000129,2]
[338905729,1727052636978,-552.94783197,0.000129,2]
[338905730,1727052636987,-553.44,0.000129,2]
[338905731,1727052636997,-1000.0,0.000129,2]
[338905732,1727052637007,-100.49563493,0.000129,2]
[338905733,1727052637024,-208.49202055,0.000129,2]
[338905734,1727052637034,-233.7876018,0.000129,2]
[338905735,1727052637045,-280.90272352,0.000129,2]
[338905736,1727052637056,-621.1315058,0.000129,2]
[338905737,1727052637065,-3228.198352,0.00012938,2]
[338905738,1727052637075,-391.42361,0.00012938,2]
[338905739,1727052637085,-322.807383,0.00012938,2]
[338905740,1727052637094,-358.629831,0.00012938,2]
[338905741,1727052637103,-500.0,0.00012973,2]
[338905742,1727052637112,-500.0,0.00012973,2]
[338905743,1727052637123,-500.0,0.00012973,2]
[338905744,1727052637133,-500.0,0.00012973,2]
[338905745,1727052637142,-155.7112312,0.00012986,2]
[338905746,1727052637152,-357.91617409,0.00012999,2]
[338905747,1727052637161,-572.5747,0.00012999,2]
[338905748,1727052637170,-2000.0,0.00012999,2]
[338905749,1727052637179,-268.28946525,0.00013,2]
[338905751,1727052638316,-11670.03628062,0.00013,2]
[338905752,1727052638327,-1710.00000005,0.00013,2]
[338905753,1727052638374,-339.1733676,0.00013,2]
[338905754,1727052638484,-244193.61356713,0.00013,2]
[338905755,1727052638494,-1011463.43983581,0.00013,2]
[338905756,1727052638503,-386535.54643341,0.00013,2]
[338905757,1727052638515,-463020.48627865,0.00013,2]
[338905758,1727052638524,-1126.71860842,0.00013,2]
[338905759,1727052638534,-323733.31949897,0.00013,2]
[338905760,1727052638545,-782.42871167,0.00013,2]
[338905761,1727052638556,-851.88368412,0.00013,2]
[338905762,1727052638567,-1952.74361478,0.00013,2]
[338905763,1727052638578,-3547.12983784,0.00013,2]
[338905764,1727052638589,-4156.4123412,0.00013,2]
[338905765,1727052638600,-1508.20205936,0.00013,2]
[338905766,1727052638611,-1031.66794064,0.00013,2]
[338905767,1727052638622,-8761.63231516,0.00013,2]
[338905768,1727052638633,-783.45476951,0.00013,2]
[338905769,1727052638749,-758.11221771,0.00013,2]
[338905770,1727052638773,-1044.71571817,0.00013,2]
[338905771,1727052638786,-705.3146958,0.00013,2]
[338905772,1727052638797,-1200.0,0.00013,2]
[338905773,1727052638976,-6035.8958172,0.00013,2]
[338905774,1727052638990,-18639.8583427,0.00013,2]
[338905775,1727052639001,-453.22798525,0.00013,2]
[338905776,1727052639013,-1203.88782761,0.00013,2]
[338905777,1727052639025,-7654.46792279,0.00013,2]
[338905778,1727052639037,-900.0,0.00013,2]
[338905779,1727052639049,-76923.10932641,0.00013,2]
[338905780,1727052639063,-432.96339634,0.00013,2]
[338905782,1727052639074,-3444.51359154,0.00013,2]
[338905783,1727052640218,-1288.19734524,0.00013,2]
[338905784,1727052640230,-104728.44636808,0.00013,2]
[338905785,1727052640240,-229537.40556475,0.00013,2]
[338905786,1727052640275,-3419.99457149,0.00013,2]
[338905787,1727052640287,-330.82850883,0.00013,2]
[338905788,1727052640298,-45807.17618935,0.00013,2]
[338905789,1727052640307,-77696.68855529,0.00013,2]
[338905859,1727052642161,-1073.59111442,0.00013,2]
[338905860,1727052642174,-900.89680643,0.00013,2]
[338905861,1727052642185,-4715.98128221,0.00013,2]
[338905862,1727052642207,-1214.79818361,0.00013,2]
[338905863,1727052642224,-851.15923326,0.00013,2]
[338905864,1727052642235,-706.86050022,0.00013,2]
[338905865,1727052642255,-1703.23587765,0.00013,2]
[338905872,1727052643309,-250.0,0.00012545,2]
[338905873,1727052643318,-806.06830296,0.00013,2]
[338905876,1727052646371,-940.87063428,0.00013,2]
[338905877,1727052646481,-716.66464331,0.00013,2]
[338905878,1727052646492,-25730.99999983,0.00013,2]
[338905879,1727052646538,-47267.43512627,0.00013,2]
[338905880,1727052672614,250.0,0.00011936,2]
[338905881,1727052762175,500.0,0.00010663,2]
[338905882,1727052794161,8911.6625,0.00011931,2]
[338905883,1727052871072,2337.845,0.00011954,2]
[338905885,1727052916817,1050.0,0.00011,2]
[338905886,1727052943716,1000.0,0.00011913,2]
[338905887,1727052954518,250.0,0.00011913,2]
[338905888,1727052977902,12179.62,0.00011913,2]
[338905889,1727052981634,258.4,0.00011913,2]
[338905890,1727052994044,150.0,0.00011913,2]
[338905891,1727053019084,186.25,0.00011913,2]
[338905892,1727053031026,152.78,0.00010959,2]
[338905893,1727053079887,2715.52,0.00011913,2]
[338905894,1727053104553,193.96,0.00011908,2]
[338905895,1727053165700,1493.98,0.00011924,2]
[338905896,1727053183416,500.0,0.00010663,2]
[338905897,1727053189589,288.04,0.00010005,2]
[338905898,1727053202455,150.0,0.00011924,2]
[338905899,1727053202700,201.586603,0.00011924,2]
[338905900,1727053219250,250.0,0.00011906,2]
[338905901,1727053229733,500.0,0.00010663,2]
[338905902,1727053303251,400.0,0.00012,2]
[338905903,1727053318979,288.0,0.00022,120]
[338905904,1727053319847,9005.11565318,6.781e-05,7]
[338905905,1727053320325,500.0,0.00010663,2]
[338905906,1727053360885,1000.0,0.00011881,2]
[338905907,1727053409622,500.0,0.00010663,2]
[338905909,1727053495274,250.0,0.00011885,2]
[338905910,1727053500568,186.19535894,0.00010663,2]
[338905911,1727053555263,450.0,0.00012,2]
[338905912,1727053565799,153.25,0.00010959,2]
[338905913,1727053569774,44262.7217487,6.781e-05,7]
[338905914,1727053569998,1000.0,0.00011885,2]
[338905915,1727053584280,416.09,0.00012,2]
[338905916,1727053632386,17622.2379365,6.781e-05,7]
[338905917,1727053632678,24709.2689492,6.781e-05,7]
[338905918,1727053656212,196.63,0.00011885,2]
[338905927,1727053751603,250.0,0.00011883,2]
[338905928,1727053769437,500.0,0.00010663,2]
[338905929,1727053778625,186.25,0.00011883,2]
[338905930,1727053820177,289.87,9.972e-05,2]
[338905934,1727053831407,-953.75,0.000122,2]
[338905935,1727053831417,-289.87,0.00012236,2]
[338905936,1727053831428,-150.0,0.0001235,2]
[338905937,1727053831438,-201.99,0.00012445,2]
[338905938,1727053831447,-6019.2095,0.00012671,2]
[338905939,1727053831456,-1210.0,0.000127,2]
[338905940,1727053831466,-1074.02867082,0.0001274,2]
[338905941,1727053831475,-150.0,0.00012745,2]
[338905942,1727053831484,-150.0,0.00012755,2]
[338905943,1727053831495,-150.0,0.00012758,2]
[338905944,1727053831504,-499.99,0.00012758,2]
[338905945,1727053831514,-1500.0,0.00012761,2]
[338905946,1727053831523,-1052.58,0.00012761,2]
[338905947,1727053831532,-1500.0,0.00012771,2]
[338905948,1727053831541,-150.0,0.00012772,2]
[338905949,1727053831551,-1500.0,0.00012773,2]
[338905950,1727053831559,-150.0,0.00012785,2]
[338905951,1727053831569,-1500.0,0.00012793,2]
[338905952,1727053831578,-2785.8578,0.000128,2]
[338905953,1727053831588,-150.0,0.000128,2]
[338905954,1727053831597,-150.0,0.000128,2]
[338905955,1727053831607,-150.0,0.000128,2]
[338905956,1727053831616,-150.0,0.00012812,2]
[338905957,1727053831625,-1500.0,0.00012854,2]
[338905958,1727053831634,-1500.0,0.00012862,2]
[338905959,1727053831644,-150.0,0.00012867,2]
[338905960,1727053831654,-150.0,0.0001288,2]
[338905961,1727053831663,-5800.0,0.00012883,2]
[338905962,1727053831673,-5800.0,0.00012891,2]
[338905963,1727053831682,-500.0,0.00012896,2]
[338905964,1727053831691,-200.0,0.00012896,2]
[338905965,1727053831701,-473.035,0.000129,2]
[338905966,1727053831710,-1508.5827,0.000129,2]
[338905967,1727053831720,-2078.293557,0.000129,2]
[338905968,1727053831732,-309.74286262,0.000129,2]
[338905969,1727053831742,-544.362,0.000129,2]
[338905970,1727053831752,-165.622,0.000129,2]
[338905971,1727053831761,-5800.0,0.000129,2]
[338905972,1727053831771,-500.0,0.000129,2]
[338905973,1727053831781,-12267.45941974,0.000129,2]
[338905974,1727053831790,-150.0,0.000129,2]
[338905975,1727053831800,-159.23017555,0.000129,2]
[338905976,1727053831809,-159.23017555,0.000129,2]
[338905977,1727053831819,-159.23017555,0.000129,2]
[338905978,1727053831828,-159.23017555,0.000129,2]
[338905979,1727053831838,-159.23017555,0.000129,2]
[338905980,1727053831847,-159.23017555,0.000129,2]
[338905981,1727053831857,-159.73,0.000129,2]
[338905982,1727053831867,-414.39857782,0.000129,2]
[338905983,1727053831876,-414.39857782,0.000129,2]
[338905984,1727053831885,-414.39857782,0.000129,2]
[338905985,1727053831894,-414.39857782,0.000129,2]
[338905986,1727053831903,-414.39857782,0.000129,2]
[338905987,1727053831913,-414.39857782,0.000129,2]
[338905988,1727053831924,-414.39857782,0.000129,2]
[338905989,1727053831933,-414.39857782,0.000129,2]
[338905990,1727053831942,-414.39857782,0.000129,2]
[338905991,1727053831951,-414.39857782,0.000129,2]
[338905992,1727053831960,-414.39857782,0.000129,2]
[338905993,1727053831969,-414.39857782,0.000129,2]
[338905994,1727053831978,-414.39857782,0.000129,2]
[338905995,1727053831987,-414.39857782,0.000129,2]
[338905996,1727053831997,-414.39857782,0.000129,2]
[338905997,1727053832006,-414.39857782,0.000129,2]
[338905998,1727053832015,-414.39857782,0.000129,2]
[338905999,1727053832024,-414.39857782,0.000129,2]
[338906000,1727053832034,-414.39857782,0.000129,2]
[338906001,1727053832044,-414.89,0.000129,2]
[338906002,1727053832053,-442.35334389,0.000129,2]
[338906003,1727053832062,-442.35334389,0.000129,2]
[338906004,1727053832072,-442.35334389,0.000129,2]
[338906005,1727053832081,-442.35334389,0.000129,2]
[338906006,1727053832090,-442.35334389,0.000129,2]
[338906007,1727053832099,-442.35334389,0.000129,2]
[338906008,1727053832109,-442.35334389,0.000129,2]
[338906009,1727053832118,-442.35334389,0.000129,2]
[338906010,1727053832127,-442.35334389,0.000129,2]
[338906011,1727053832136,-442.35334389,0.000129,2]
[338906012,1727053832146,-442.35334389,0.000129,2]
[338906013,1727053832155,-442.35334389,0.000129,2]
[338906014,1727053832164,-442.35334389,0.000129,2]
[338906015,1727053832175,-442.35334389,0.000129,2]
[338906016,1727053832186,-442.35334389,0.000129,2]
[338906017,1727053832200,-442.35334389,0.000129,2]
[338906018,1727053832209,-442.35334389,0.000129,2]
[338906019,1727053832219,-442.35334389,0.000129,2]
[338906020,1727053832228,-442.35334389,0.000129,2]
[338906021,1727053832237,-442.85,0.000129,2]
[338906022,1727053832247,-518.39221935,0.000129,2]
[338906023,1727053832256,-309.70922117,0.000129,2]
[338906024,1727053832265,-1456.56944414,0.00012906,2]
[338906025,1727053832275,-150.0,0.00012906,2]
[338906026,1727053832285,-150.0,0.00012908,2]
[338906027,1727053832294,-1500.0,0.0001291,2]
[338906028,1727053832303,-150.0,0.0001291,2]
[338906029,1727053832313,-1500.0,0.00012912,2]
[338906030,1727053832322,-150.0,0.00012943,2]
[338906031,1727053832332,-150.0,0.00012954,2]
[338906032,1727053832341,-1500.0,0.00012957,2]
[338906033,1727053832350,-1500.0,0.00012964,2]
[338906034,1727053832360,-500.0,0.00012973,2]
[338906035,1727053832369,-427.77409693,0.00012973,2]
[338906036,1727053832378,-500.0,0.00012973,2]
[338906037,1727053832387,-500.0,0.00012973,2]
[338906038,1727053832396,-1500.0,0.00012974,2]
[338906039,1727053832406,-150.0,0.00012974,2]
[338906040,1727053832415,-150.0,0.00012986,2]
[338906041,1727053832424,-152.76,0.0001299,2]
[338906042,1727053832434,-178.95808705,0.00012999,2]
[338906043,1727053832443,-2000.0,0.00012999,2]
[338906044,1727053832453,-77930.32585537,0.00013,2]
[338906045,1727053832466,-438.97982347,0.00013,2]
[338906046,1727053832477,-1510.15651431,0.00013,2]
[338906047,1727053832489,-457.29170079,0.00013,2]
[338906048,1727053832500,-49535.64804551,0.00013,2]
[338906049,1727053832510,-15273.62,0.00013,2]
[338906050,1727053832519,-29495.53263533,0.00013,2]
[338906051,1727053832530,-344.40721085,0.00013,2]
[338906052,1727053832541,-471.075,0.00013,2]
[338906061,1727053837462,-12470.584085,0.00013,2]